bitfinex-derivatives/quotes_BNBF0:USTF0_20250329
["timestamp","ask_amount","ask_price","bid_price","bid_amount"]
[1743251770731,1.259,601.05,600.63,0.28955481]
[1743251770928,1.259,601.05,600.64,0.2707294]
[1743251772923,1.259,601.05,600.65,0.27070357]
[1743251773121,1.259,601.05,600.66,0.27070357]
[1743251773327,1.259,601.05,600.67,0.27070357]
[1743251773727,1.259,601.05,600.68,0.27070357]
[1743251773926,1.259,601.05,600.69,0.27070357]
[1743251774127,1.259,601.05,600.7,0.27070357]
[1743251774322,1.259,601.05,600.71,0.27070357]
[1743251774523,1.259,601.05,600.64,0.27070357]
[1743251776328,1.259,601.05,600.65,0.27060497]
[1743251776631,1.259,601.05,600.66,0.27060497]
[1743251776928,1.259,601.05,600.67,0.27060497]
[1743251777126,1.259,601.05,600.64,0.27060497]
[1743251777331,1.259,601.05,600.63,0.28954879]
[1743251777332,1.259,601.05,600.65,0.27060497]
[1743251777535,1.259,601.05,600.64,0.27060497]
[1743251778134,1.259,601.05,600.63,0.28954879]
[1743251778334,1.259,601.05,600.64,0.27060277]
[1743251778933,1.132,601.04,600.75,1.21478773]
[1743251779337,1.132,601.04,600.76,0.27060277]
[1743251782039,1.132,601.04,600.77,0.27060277]
[1743251782236,1.132,601.04,600.73,0.27060277]
[1743251782437,1.132,601.04,600.74,0.27060277]
[1743251782642,1.132,601.04,600.73,0.27060277]
[1743251782840,1.132,601.04,600.74,0.27060277]
[1743251783039,1.132,601.04,600.73,0.27060277]
[1743251783239,1.132,601.04,600.74,0.27060277]
[1743251783442,1.132,601.04,600.73,0.27060277]
[1743251783743,1.132,601.04,600.74,0.27060277]
[1743251783944,1.132,601.04,600.75,0.27060277]
[1743251784141,1.132,601.04,600.73,0.27060277]
[1743251784342,1.132,601.04,600.74,0.27060277]
[1743251784542,1.132,601.04,600.75,0.27060277]
[1743251784741,1.132,601.04,600.76,0.27060277]
[1743251784938,1.132,601.04,600.59,0.27060277]
[1743251785142,1.132,601.04,600.6,0.6036031]
[1743251785345,1.132,601.04,600.61,0.60359755]
[1743251785639,1.132,601.04,600.62,0.27060277]
[1743251786146,1.267,601.03,600.62,0.27060277]
[1743251786847,1.267,601.03,600.63,0.27080573]
[1743251787043,1.267,601.03,600.62,0.27080573]
[1743251787247,1.267,601.03,600.63,0.27080573]
[1743251787543,1.267,601.03,600.64,1.48080573]
[1743251787743,1.267,601.03,600.65,0.60377834]
[1743251787942,1.267,601.03,600.66,0.60377279]
[1743251788146,1.267,601.03,600.67,0.27080573]
[1743251788344,1.267,601.03,600.68,0.33295598]
[1743251788544,1.267,601.03,600.69,0.27080573]
[1743251788745,1.267,601.03,600.7,0.33294489]
[1743251788945,1.267,601.03,600.71,0.27080573]
[1743251789146,1.267,601.03,600.72,0.33293381]
[1743251789344,1.267,601.03,600.73,0.27080573]
[1743251789945,1.267,601.03,600.75,1.21478773]
[1743251790141,1.267,601.03,600.76,0.27080573]
[1743251791747,1.267,601.03,600.77,0.3329061]
[1743251791944,1.267,601.03,600.78,0.27073793]
[1743251792248,1.267,601.03,600.78,0.60363849]
[1743251792447,1.267,601.03,600.79,0.27073793]
[1743251793246,1.257,601.02,600.79,0.27073793]
[1743251793645,1.257,601.02,600.8,0.27072185]
[1743251793844,1.257,601.02,600.79,0.27072185]
[1743251794046,1.664,601.01,600.79,0.27072185]
[1743251795553,1.664,601.01,600.8,0.27068293]
[1743251795749,1.664,601.01,600.79,0.27068293]
[1743251795951,1.664,601.01,600.8,0.27068293]
[1743251796149,1.664,601.01,600.8,0.33288948]
[1743251796351,1.664,601.01,600.81,0.27068293]
[1743251796551,1.297,601.0,600.82,0.33287839]
[1743251796752,1.297,601.0,600.83,0.27068293]
[1743251796952,1.297,601.0,600.84,0.33286731]
[1743251797248,1.297,601.0,600.85,0.27068293]
[1743251800760,1.297,601.0,600.84,0.33286731]
[1743251800761,1.297,601.0,600.86,0.27055219]
[1743251800955,1.297,601.0,600.87,0.27055219]
[1743251801157,1.297,601.0,600.88,0.27055219]
[1743251801353,1.297,601.0,600.89,0.27055219]
[1743251801559,1.297,601.0,600.85,0.27055219]
[1743251801759,1.297,601.0,600.84,0.33286731]
[1743251801760,1.297,601.0,600.86,0.27055219]
[1743251801961,1.297,601.0,600.85,0.27055219]
[1743251802161,1.297,601.0,600.86,0.27055219]
[1743251802360,1.297,601.0,600.84,0.33286731]
[1743251802561,1.297,601.0,600.87,0.27050597]
[1743251802860,1.297,601.0,600.88,0.27050597]
[1743251803059,1.297,601.0,600.85,0.27050597]
[1743251803259,1.297,601.0,600.86,0.27050597]
[1743251803563,1.297,601.0,600.87,0.27050597]
[1743251803763,1.297,601.0,600.85,0.27050597]
[1743251806062,1.297,601.0,600.84,0.33286731]
[1743251806262,1.297,601.0,600.85,0.2704357]
[1743251807762,1.297,601.0,600.84,0.62231374]
[1743251808061,1.297,601.0,600.85,0.27042761]
[1743251808462,1.297,601.0,600.89,1.21478773]
[1743251808765,1.297,601.0,600.9,0.27042761]
[1743251809958,1.297,601.0,600.9,0.60326169]
[1743251810157,1.297,601.0,600.91,0.27042761]
[1743251813165,1.297,601.0,600.9,1.54762181]
[1743251813365,1.297,601.0,600.91,0.27049447]
[1743251815667,1.297,601.0,600.94,1.21478773]
[1743251815966,1.297,601.0,600.95,0.27049447]
[1743251816666,1.297,601.0,600.94,1.21478773]
[1743251816865,1.297,601.0,600.95,0.27061317]
[1743251818062,1.297,601.0,600.96,1.21478773]
[1743251818572,1.297,601.0,600.97,0.27058926]
[1743251820271,1.297,601.0,600.98,0.27056837]
[1743251820466,1.297,601.0,600.99,0.27056837]
[1743251820665,1.297,601.0,600.97,1.4853561]
[1743251820870,1.297,601.0,600.98,0.27056837]
[1743251822375,1.297,601.0,600.99,0.33278423]
[1743251822678,1.297,601.0,600.99,0.6033526]
[1743251822975,1.297,601.0,600.99,1.57807202]
[1743251825275,1.297,601.0,600.99,1.30750365]
[1743251825572,1.297,601.0,600.99,1.57814399]
[1743251827177,1.297,601.0,600.99,1.30750365]
[1743251827379,1.297,601.0,600.99,1.578063]
[1743251830674,1.297,601.0,600.99,1.30750365]
[1743251830879,1.297,601.0,600.99,1.57809176]
[1743251835879,1.297,601.0,600.99,1.30750365]
[1743251836082,1.297,601.0,600.99,1.57824172]
[1743251836484,1.00767029,601.0,600.99,1.57824172]
[1743251836783,1.283,601.18,600.99,1.57824172]
[1743251837084,1.283,601.18,601.0,0.27073807]
[1743251837283,1.283,601.18,601.01,0.33277316]
[1743251837784,1.283,601.18,601.02,0.27073807]
[1743251837982,1.283,601.18,601.03,0.33276209]
[1743251838176,1.283,601.18,601.04,0.27073807]
[1743251838978,1.373,601.19,601.04,0.27073807]
[1743251839382,1.373,601.19,601.05,0.33275101]
[1743251839582,1.373,601.19,601.06,0.27073807]
[1743251840083,1.373,601.19,601.06,1.74273807]
[1743251840278,1.373,601.19,601.07,0.27073807]
[1743251840682,1.373,601.19,601.08,0.33273441]
[1743251841183,1.373,601.19,601.09,0.27073807]
[1743251841383,1.373,601.19,601.1,0.33272334]
[1743251841583,1.373,601.19,601.11,0.27073807]
[1743251841777,1.373,601.19,601.12,0.33271227]
[1743251841977,1.373,601.19,601.13,0.27073807]
[1743251842579,1.373,601.19,601.12,0.33271227]
[1743251842779,1.373,601.19,601.14,0.27099343]
[1743251842984,1.373,601.19,601.15,0.27099343]
[1743251843185,1.373,601.19,601.18,1.2336679]
[1743251843381,1.373,601.19,601.18,1.50466133]
[1743251843784,1.373,601.19,601.18,1.83734039]
[1743251844486,1.373,601.19,601.18,1.56634696]
[1743251844786,1.373,601.19,601.18,1.83716055]
[1743251845687,1.373,601.19,601.18,1.83657568]
[1743251847791,1.373,601.19,601.18,1.57762734]
[1743251848093,1.373,601.19,601.18,1.57759141]
[1743251849693,1.373,601.19,601.18,1.57777506]
[1743251850291,1.373,601.19,601.18,2.08529934]
[1743251852793,1.373,601.19,601.18,1.83910883]
[1743251855007,1.373,601.19,601.18,1.57965099]
[1743251855909,1.187,601.33,601.18,1.57965099]
[1743251856114,1.187,601.33,601.19,0.27096131]
[1743251858210,1.187,601.33,601.18,1.30868968]
[1743251858417,1.187,601.33,601.19,0.27105698]
[1743251858717,1.187,601.33,601.23,1.23668792]
[1743251858910,1.187,601.33,601.24,0.27105698]
[1743251861517,1.187,601.33,601.2,0.28931408]
[1743251861518,1.187,601.33,601.25,0.27105698]
[1743251861715,1.187,601.33,601.21,0.27105698]
[1743251861917,1.187,601.33,601.2,0.28931408]
[1743251862216,1.187,601.33,601.21,0.27103482]
[1743251863620,1.187,601.33,601.19,0.27103482]
[1743251863818,1.187,601.33,601.2,0.56036213]
[1743251864019,1.187,601.33,601.21,0.27103482]
[1743251865219,1.187,601.33,601.2,0.28932731]
[1743251865419,1.187,601.33,601.21,0.27084979]
[1743251866620,1.187,601.33,601.19,0.27084979]
[1743251866821,1.187,601.33,601.2,0.5601771]
[1743251867119,1.187,601.33,601.21,0.27089019]
[1743251867517,1.998,601.38,601.21,0.27089019]
[1743251868720,1.998,601.38,601.22,0.27091723]
[1743251868920,1.998,601.38,601.21,0.27091723]
[1743251869116,1.998,601.38,601.22,0.27091723]
[1743251869323,1.998,601.38,601.21,0.27091723]
[1743251869521,1.998,601.38,601.19,0.27091723]
[1743251869718,1.998,601.38,601.21,0.2893213]
[1743251869919,1.998,601.38,601.22,0.27091723]
[1743251870723,1.998,601.38,601.23,1.214]
[1743251870917,1.998,601.38,601.24,0.27091723]
[1743251878727,1.998,601.38,601.37,1.23668792]
[1743251878931,1.998,601.38,601.37,1.50760515]
[1743251879936,1.998,601.38,601.37,0.27160515]
[1743251880238,1.51,601.42,601.37,0.27160515]
[1743251880435,1.51,601.42,601.38,0.27091723]
[1743251880834,1.51,601.42,601.39,0.27091723]
[1743251881034,1.51,601.42,601.37,0.00068792]
[1743251881534,1.51,601.42,601.29,0.27091723]
[1743251881730,1.51,601.42,601.3,0.27091723]
[1743251881930,1.51,601.42,601.25,0.27091723]
[1743251882136,1.51,601.42,601.26,0.27091723]
[1743251882332,1.51,601.42,601.25,0.27091723]
[1743251882530,1.51,601.42,601.26,0.27091723]
[1743251882732,1.51,601.42,601.27,0.27091723]
[1743251882938,1.51,601.42,601.25,0.27091723]
[1743251883138,1.51,601.42,601.26,0.27091723]
[1743251883339,1.51,601.42,601.27,0.27091723]
[1743251883639,3.19259302,602.57,601.25,0.27091723]
[1743251883838,1.86,601.47,601.26,0.27091723]
[1743251884038,1.86,601.47,601.25,0.27091723]
[1743251885234,1.371,601.46,601.25,0.27091723]
[1743251885435,1.371,601.46,601.24,0.28930206]
[1743251885635,1.371,601.46,601.25,0.27095516]
[1743251886336,1.113,601.45,601.25,0.27095516]
[1743251886735,1.113,601.45,601.26,0.27102505]
[1743251886938,1.113,601.45,601.25,0.27102505]
[1743251887340,1.113,601.45,601.24,0.27102505]
[1743251887541,0.247,601.22,601.19,1.23546846]
[1743251888841,0.247,601.22,601.09,0.28934776]
[1743251888842,0.247,601.22,601.18,1.23546846]
[1743251891444,0.247,601.22,601.0,1.52796379]
[1743251891641,1.113,601.45,601.01,0.27139524]
[1743251891842,1.24808917,601.44,601.01,0.27139524]
[1743251892042,1.113,601.45,601.0,1.52796379]
[1743251892242,1.24810501,601.44,601.0,1.52796379]
[1743251892443,1.113,601.45,601.0,1.52796379]
[1743251892743,0.96706616,601.43,601.01,1.393]
[1743251893342,0.96706616,601.42,601.01,1.393]
[1743251893839,0.96706616,601.41,601.01,1.393]
[1743251894242,0.96706616,601.4,601.01,1.393]
[1743251895143,1.113,601.45,601.01,1.393]
[1743251895841,0.96618318,601.44,601.01,1.393]
[1743251896342,0.96618318,601.43,601.01,1.393]
[1743251896745,0.96618318,601.42,601.01,1.393]
[1743251897143,1.113,601.45,601.01,1.393]
[1743251897939,0.96589116,601.44,601.01,1.393]
[1743251898543,0.96589116,601.43,601.01,1.393]
[1743251898941,1.113,601.45,601.01,1.393]
[1743251901750,1.113,601.45,601.02,0.27155755]
[1743251905759,1.113,601.45,601.02,1.45255755]
[1743251905959,1.113,601.45,601.03,0.27155755]
[1743251907956,1.113,601.45,601.04,0.27139773]
[1743251908159,2.259,601.45,601.03,0.27139773]
[1743251908352,2.259,601.45,601.04,0.27139773]
[1743251908658,2.259,601.45,601.05,0.27139773]
[1743251908862,2.259,601.45,601.03,0.27139773]
[1743251909058,2.259,601.45,601.02,1.181]
[1743251909059,2.259,601.45,601.04,0.27139773]
[1743251909253,2.259,601.45,601.05,0.27139773]
[1743251909560,2.259,601.45,601.03,0.27139773]
[1743251909755,2.259,601.45,601.04,0.27139773]
[1743251909956,2.259,601.45,601.03,0.27139773]
[1743251910157,2.259,601.45,601.04,0.27139773]
[1743251910356,2.259,601.45,601.03,0.27139773]
[1743251910555,2.259,601.45,601.02,1.181]
[1743251910556,2.259,601.45,601.04,0.27139773]
[1743251910760,2.259,601.45,601.03,0.27139773]
[1743251911055,2.259,601.45,601.04,0.27139773]
[1743251911254,2.259,601.45,601.05,0.27139773]
[1743251911457,2.259,601.45,601.03,0.27139773]
[1743251911653,2.259,601.45,601.04,0.27139773]
[1743251911955,2.259,601.45,601.05,0.27139773]
[1743251912160,2.259,601.45,601.03,0.27139773]
[1743251912360,2.259,601.45,601.04,0.27139773]
[1743251912655,2.259,601.45,601.05,0.27139773]
[1743251912958,2.259,601.45,601.06,0.27139773]
[1743251913155,2.259,601.45,601.02,1.181]
[1743251913156,2.259,601.45,601.03,0.27139773]
[1743251913361,2.259,601.45,601.02,1.181]
[1743251913554,2.259,601.45,601.03,0.27139481]
[1743251915355,2.259,601.45,601.02,1.181]
[1743251915554,0.271,601.01,600.83,1.23858836]
[1743251915756,0.271,601.01,600.84,0.27162226]
[1743251915955,0.271,601.01,600.91,0.28941634]
[1743251916155,0.271,601.01,600.92,0.27162226]
[1743251917255,0.271,601.01,600.9,0.27162226]
[1743251917659,0.271,601.01,600.89,1.23858836]
[1743251919165,0.271,601.01,600.75,1.23858836]
[1743251919462,0.271,601.01,600.76,0.27179612]
[1743251919663,1.233,601.09,600.76,0.27179612]
[1743251921262,1.233,601.09,600.83,1.23858836]
[1743251921455,1.233,601.09,600.84,0.27179612]
[1743251922565,1.233,601.09,600.85,1.501]
[1743251922764,1.233,601.09,600.86,0.27179612]
[1743251928860,1.233,601.09,600.85,1.501]
[1743251938275,1.24503785,601.38,600.85,1.501]
[1743251938476,1.24503785,601.37,600.85,1.501]
[1743251938774,0.9655473,601.39,600.86,0.27141051]
[1743251938974,0.9655473,601.36,600.86,0.27141051]
[1743251939371,0.9655473,601.35,600.86,0.27141051]
[1743251940374,0.9655473,601.34,600.86,0.27141051]
[1743251940572,0.9655473,601.34,600.85,1.501]
[1743251940874,3.007,601.33,600.86,0.27139682]
[1743251941373,3.007,601.33,600.85,1.501]
[1743251941374,3.9725473,601.33,600.85,1.501]
[1743251941875,0.9655473,601.32,600.85,1.501]
[1743251942271,0.9655473,601.31,600.85,1.501]
[1743251943073,0.9655473,601.3,600.85,1.501]
[1743251943377,0.9655473,601.3,600.86,1.138]
[1743251943677,0.9655473,601.29,600.86,1.138]
[1743251944274,0.9655473,601.28,600.86,1.138]
[1743251944778,0.9655473,601.27,600.86,1.138]
[1743251945479,0.9655473,601.26,600.86,1.138]
[1743251945979,0.9655473,601.25,600.86,1.138]
[1743251946772,0.9655473,601.24,600.86,1.138]
[1743251947176,0.9655473,601.23,600.86,1.138]
[1743251947372,0.9655473,601.22,600.86,1.138]
[1743251948479,1.449,601.32,600.87,0.27124916]
[1743251948880,0.96860661,601.31,600.87,0.27124916]
[1743251949376,0.96860661,601.3,600.86,1.138]
[1743251949581,0.96860661,601.3,600.87,0.27123016]
[1743251949781,2.752,601.32,600.87,0.27123016]
[1743251949782,0.96860661,601.29,600.87,0.27123016]
[1743251950381,2.752,601.32,600.87,0.27123016]
[1743251952081,2.752,601.32,601.04,1.23858836]
[1743251952277,2.752,601.32,601.05,0.27123016]
[1743251952977,2.752,601.32,601.06,0.27116066]
[1743251953180,2.752,601.32,601.05,0.27116643]
[1743251953382,2.752,601.32,601.04,1.23858836]
[1743251953582,2.752,601.32,601.05,0.27116458]
[1743251955383,4.254,601.32,601.02,0.27116458]
[1743251956881,4.254,601.32,601.02,1.50975294]
[1743251957080,4.254,601.32,601.03,0.27116458]
[1743251958290,5.461,601.32,601.02,1.23858836]
[1743251958582,1.24999612,601.31,601.02,1.23858836]
[1743251958783,1.24999612,601.3,601.02,0.00058836]
[1743251959087,0.96891222,601.31,601.02,0.00058836]
[1743251959388,0.96891222,601.29,601.02,0.00058836]
[1743251959985,0.96891222,601.29,600.89,0.27124218]
[1743251960183,4.012,601.32,600.89,0.27124218]
[1743251960991,0.96887311,601.31,600.89,0.27124218]
[1743251961489,0.96887311,601.3,600.89,0.27124218]
[1743251961884,4.012,601.32,600.89,0.27124218]
[1743251962287,5.441,601.32,600.89,0.27124218]
[1743251962485,0.96891948,601.31,600.89,0.27124218]
[1743251962688,0.96891948,601.31,600.87,0.27124218]
[1743251962888,0.96891948,601.31,600.88,0.28944403]
[1743251963087,5.441,601.32,600.89,0.27124218]
[1743251963592,1.25015958,601.31,600.88,0.28944403]
[1743251963788,5.441,601.32,600.89,0.27126811]
[1743251963990,1.2501966,601.31,600.89,0.27126811]
[1743251964195,2.21927034,601.3,600.89,0.27126811]
[1743251964492,1.2501966,601.29,600.89,0.27126811]
[1743251964691,2.21927034,601.28,600.89,0.27126811]
[1743251964991,1.2501966,601.27,600.89,0.27126811]
[1743251965192,1.2501966,601.26,600.89,0.27126811]
[1743251965391,1.2501966,601.25,600.89,0.27126811]
[1743251965591,2.21927034,601.24,600.9,0.27126811]
[1743251965791,0.96907374,601.24,600.91,0.27126811]
[1743251965991,1.25057162,601.23,600.88,0.27126811]
[1743251966192,2.21964536,601.22,600.87,1.23794466]
[1743251966390,1.25057162,601.21,600.87,1.23794466]
[1743251966587,1.25057162,601.2,600.87,1.23794466]
[1743251966786,1.25057162,601.19,600.87,1.23794466]
[1743251966989,2.21964536,601.18,600.87,1.23794466]
[1743251967289,0.96907374,601.18,600.78,0.28948977]
[1743251967485,0.96907374,601.17,600.78,0.28948977]
[1743251968092,0.96907374,601.16,600.78,0.28948977]
[1743251968592,2.636,601.32,600.72,1.23794466]
[1743251968792,4.16506236,601.31,600.78,0.28952108]
[1743251968994,1.99873468,601.3,600.78,0.28952108]
[1743251969291,1.99873468,601.29,600.78,0.28952108]
[1743251969493,1.99873468,601.28,600.78,0.28952108]
[1743251969789,1.99873468,601.27,600.78,0.28952108]
[1743251969987,1.99879868,601.26,600.78,0.28952108]
[1743251970183,1.99879868,601.25,600.78,0.28952108]
[1743251970390,1.25075832,601.24,600.78,0.28952108]
[1743251970691,2.22030609,601.23,600.78,0.28952108]
[1743251970887,1.25084299,601.22,600.78,0.28952108]
[1743251971087,2.22030609,601.21,600.78,0.28952108]
[1743251971291,1.25084299,601.2,600.78,0.28952108]
[1743251971491,2.22030609,601.19,600.73,2.61294466]
[1743251971688,1.25084299,601.18,600.73,1.375]
[1743251971891,1.25093796,601.17,600.78,0.28951506]
[1743251972091,0.9694631,601.17,600.78,0.28951506]
[1743251972895,0.9694631,601.16,600.78,0.28951506]
[1743251973093,1.476,601.27,600.78,0.28951506]
[1743251973291,1.99920027,601.26,600.78,0.28951506]
[1743251973497,1.476,601.27,600.78,0.28951506]
[1743251973701,0.96969408,601.25,600.78,0.28951506]
[1743251974201,1.476,601.27,600.78,0.28951506]
[1743251974401,1.476,601.27,600.73,1.375]
[1743251974702,1.476,601.27,600.78,0.28947171]
[1743251977002,1.126,601.26,600.78,0.28947171]
[1743251977403,1.126,601.26,600.76,1.23794466]
[1743251977906,1.126,601.26,600.77,0.28945847]
[1743251980507,1.126,601.26,600.73,1.375]
[1743251980809,1.126,601.26,600.77,0.28946208]
[1743251981212,1.126,601.26,600.78,0.33290056]
[1743251983411,1.437,601.25,600.78,0.33290056]
[1743251985109,1.258,601.24,600.78,0.33290056]
[1743251988417,1.082,601.23,600.78,0.33290056]
[1743251995218,1.082,601.23,600.78,1.39990056]
[1743251998015,1.082,601.23,600.82,1.23794466]
[1743251998219,1.082,601.23,600.83,0.33287285]
[1743252000923,1.591,601.22,600.83,0.33287285]
[1743252002422,1.591,601.22,600.84,1.23794466]
[1743252002626,1.591,601.22,600.85,0.33286177]
[1743252003828,1.591,601.22,600.85,1.57080643]
[1743252009429,1.591,601.22,600.87,1.23794466]
[1743252009729,1.591,601.22,600.88,0.33284516]
[1743252011429,1.591,601.22,600.9,1.23794466]
[1743252013529,1.591,601.22,600.97,1.23794466]
[1743252014129,1.591,601.22,600.98,1.394]
[1743252015031,1.173,601.21,600.98,1.394]
[1743252016226,1.173,601.21,601.0,1.23794466]
[1743252018431,1.173,601.21,601.12,1.23794466]
[1743252020332,1.173,601.21,600.98,1.394]
[1743252020333,1.173,601.21,601.09,1.23794466]
[1743252022429,1.173,601.21,601.08,1.23794466]
[1743252024233,1.173,601.21,600.99,1.23794466]
[1743252027137,1.173,601.21,600.98,1.68341273]
[1743252027138,1.173,601.21,601.0,1.23794466]
[1743252028337,1.173,601.21,601.01,1.156]
[1743252035037,2.63,601.21,601.01,1.156]
[1743252038648,2.63,601.21,601.02,1.02]
[1743252039041,1.457,601.21,601.02,1.02]
[1743252048153,1.457,601.21,600.88,1.57078982]
[1743252048346,1.457,601.21,600.88,0.33284516]
[1743252056850,4.193,601.22,600.88,0.33284516]
[1743252060367,1.151,601.21,600.88,0.33284516]
[1743252066769,1.03,601.2,600.88,0.33284516]
[1743252071471,2.431,601.2,600.88,0.33284516]
[1743252072173,3.568,601.2,600.88,0.33284516]
[1743252072372,3.568,601.2,601.01,1.23794466]
[1743252074276,3.568,601.2,600.99,1.23794466]
[1743252076575,3.568,601.2,601.0,1.23794466]
[1743252078970,3.568,601.2,601.01,0.33277316]
[1743252081579,3.568,601.2,601.01,1.57071782]
[1743252083677,3.568,601.2,601.03,1.23794466]
[1743252083881,3.568,601.2,601.04,0.33275655]
[1743252085579,3.568,601.2,601.06,1.23794466]
[1743252085782,2.538,601.2,601.07,0.33273994]
[1743252094395,1.137,601.2,601.07,0.33273994]
[1743252097991,4.243,601.27,601.07,0.33273994]
[1743252098589,4.243,601.27,601.06,0.28929725]
[1743252098893,4.243,601.27,601.06,1.52724191]
[1743252100792,4.243,601.27,601.12,1.23794466]
[1743252101987,2.815,601.27,601.12,1.23794466]
[1743252102688,2.815,601.27,601.17,1.23794466]
[1743252104193,2.815,601.27,601.23,1.23794466]
[1743252106193,2.815,601.27,601.12,1.23794466]
[1743252107791,2.815,601.27,601.14,1.23794466]
[1743252108396,1.163,601.27,601.14,1.23794466]
[1743252110700,1.163,601.27,601.18,1.23794466]
[1743252112298,1.163,601.27,601.23,1.23794466]
[1743252114402,1.163,601.27,601.15,0.28926839]
[1743252114403,1.163,601.27,601.24,1.23794466]
[1743252116303,1.163,601.27,601.15,0.28926839]
[1743252117102,1.802,601.38,601.15,0.28926839]
[1743252118503,1.802,601.38,601.12,1.48165897]
[1743252118904,1.802,601.38,601.15,0.28926839]
[1743252119604,1.802,601.38,601.29,1.24224702]
[1743252122899,1.802,601.38,601.23,1.48165897]
[1743252125404,1.802,601.38,601.26,1.48165897]
[1743252127106,1.802,601.38,601.33,1.48165897]
[1743252129206,1.802,601.38,601.32,1.24053795]
[1743252130814,1.802,601.38,601.32,0.00053795]
[1743252131813,1.802,601.38,601.23,1.332]
[1743252138318,1.046,601.43,601.23,1.332]
[1743252141118,2.348,601.43,601.23,1.332]
[1743252148929,3.712,601.43,601.23,1.332]
[1743252150328,4.728,601.43,601.23,1.332]
[1743252157635,4.728,601.43,601.22,0.28928282]
[1743252158035,2.38,601.43,601.22,0.28928282]
[1743252160038,2.38,601.43,601.23,1.279]
[1743252160438,3.75,601.43,601.23,1.279]
[1743252161040,4.82,601.43,601.23,1.279]
[1743252175048,4.82,601.43,601.22,0.28931168]
[1743252175450,1.37,601.43,601.22,0.28931168]
[1743252175645,1.37,601.43,601.04,1.24064055]
[1743252176046,1.37,601.43,601.2,0.28934175]
[1743252176246,1.37,601.43,601.03,1.24064055]
[1743252176641,1.37,601.43,601.2,0.28934295]
[1743252176845,1.37,601.43,601.03,1.24064055]
[1743252177247,1.37,601.43,601.2,0.28934295]
[1743252177446,1.37,601.43,601.03,1.24064055]
[1743252177649,1.364,601.42,601.03,1.24064055]
[1743252177848,1.364,601.42,601.2,0.28934295]
[1743252178050,2.802,601.42,601.03,1.24064055]
[1743252178344,2.802,601.42,601.2,0.28934415]
[1743252178744,2.802,601.42,601.21,1.293]
[1743252181150,2.802,601.42,601.21,1.161]
[1743252181547,2.802,601.42,601.11,1.24064055]
[1743252183046,2.802,601.42,600.97,0.28937784]
[1743252186550,2.802,601.42,600.98,1.293]
[1743252191247,2.802,601.42,601.0,1.24064055]
[1743252193053,2.802,601.42,600.98,1.293]
[1743252193452,1.86,601.41,600.98,1.293]
[1743252197154,1.86,601.41,600.99,1.4]
[1743252199248,1.86,601.41,601.0,0.3327787]
[1743252200156,1.073,601.4,601.0,0.3327787]
[1743252201558,1.073,601.4,601.0,1.57341925]
[1743252204159,1.073,601.4,601.12,1.24064055]
[1743252205264,1.367,601.39,601.12,1.24064055]
[1743252207465,1.367,601.39,601.19,1.24064055]
[1743252210865,1.367,601.39,601.1,0.28930927]
[1743252211962,2.098,601.38,601.1,0.28930927]
[1743252214564,2.098,601.38,601.0,0.3327787]
[1743252214963,2.098,601.38,601.1,0.28934656]
[1743252215167,2.098,601.38,601.0,0.3327787]
[1743252215471,2.098,601.38,601.1,0.28935739]
[1743252215670,1.199,601.37,601.1,0.28935739]
[1743252215872,1.199,601.37,601.0,0.3327787]
[1743252216069,1.199,601.37,601.1,0.28935739]
[1743252216468,1.199,601.37,601.0,0.3327787]
[1743252216664,1.199,601.37,601.1,0.28935859]
[1743252217072,1.199,601.37,601.0,0.3327787]